[Event "ESTCC-50 2025"]
[Site "Swidnica"]
[Date "2025.04.08"]
[Round "4.12"]
[White "Jackson, Sheila"]
[Black "Crocker, Philip J"]
[Result "1/2-1/2"]
[Annotator "RC"]
[ECO "C58"]
[WhiteElo "2031"]
[BlackElo "2137"]
[PlyCount "54"]
[EventDate "2025.04.05"]
[EventType "team-tourn"]
[EventCountry "POL"]
[SourceTitle "playchess.com"]
[Source "ChessBase"]
[SourceQuality "1"]
[WhiteTeam "England"]
[BlackTeam "England"]
[WhiteTeamCountry "ENG"]
[BlackTeamCountry "ENG"]
[TimeControl "40/5400+30:1800+30"]

1. e4 {[%emt 0:00:01]} e5 {[%emt 0:00:08]} 2. Nf3 {[%emt 0:00:05]} Nc6 {[%emt 0:00:06]} 3. Bc4 {[%emt 0:00:09]} Nf6 {[%emt 0:00:14]} 4. Ng5 {[%emt 0:00:06]} d5 {[%emt 0:00:13]} 5. exd5 {[%emt 0:00:07]} Na5 {[%emt 0:00:06]} 6. Bb5+ {[%emt 0:00:04]} Bd7 {[%emt 0:00:28]} 7. Qe2 {[%emt 0:09:42]} Bd6 {[%emt 0:00:14]} 8. Bxd7+ {[%emt 0:07:01]} Qxd7 {[%emt 0:01:10]} 9. Nc3 {[%emt 0:03:23]} c6 {[%emt 0:08:45]} 10. dxc6 {[%emt 0:02:54]} Nxc6 {[%emt 0:00:22]} 11. Nge4 {[%emt 0:09:13]} Nxe4 {[%emt 0:01:34]} 12. Nxe4 {[%emt 0:00:25]} Be7 {[%emt 0:01:36]} 13. d3 {[%emt 0:04:01]} O-O {[%emt 0:02:58]} 14. O-O {[%emt 0:20:46]} f5 {[%emt 0:03:21]} 15. Nc3 {[%emt 0:09:53]} Rae8 {[%emt 0:04:12]} 16. Qd1 {[%emt 0:03:11]} Bd6 {[%emt 0:12:12]} 17. f4 {[%emt 0:04:12]} Qe7 {[%emt 0:14:38]} 18. Nd5 {[%emt 0:08:32]} Qh4 {[%emt 0:03:04]} 19. g3 {[%emt 0:01:32]} Qh3 {[%emt 0:01:13]} 20. c3 {[%emt 0:01:59]} Bc5+ {[%emt 0:08:36]} 21. Kh1 {[%emt 0:00:25]} Rd8 {[%emt 0:03:37]} 22. c4 {[%emt 0:01:36]} e4 {[%emt 0:02:50]} 23. dxe4 {[%emt 0:02:00]} fxe4 {[%emt 0:00:23]} 24. Bd2 {[%emt 0:01:29]} Rfe8 {[%emt 0:03:17]} 25. Bc3 {[%emt 0:00:24]} e3 {[%emt 0:00:55]} 26. Qe2 {[%emt 0:00:43]} Qf5 {[%emt 0:02:23]} 27. Rad1 {[%emt 0:02:35]} a5 {[%emt 0:02:23]} 1/2-1/2

[Event "ESTCC-50 2025"]
[Site "Swidnica"]
[Date "2025.04.08"]
[Round "4.13"]
[White "Fletcher, John"]
[Black "Bischoff, Klaus"]
[Result "0-1"]
[Annotator "RC"]
[ECO "A45"]
[WhiteElo "1989"]
[BlackElo "2425"]
[PlyCount "68"]
[EventDate "2025.04.05"]
[EventType "team-tourn"]
[EventCountry "POL"]
[SourceTitle "playchess.com"]
[Source "ChessBase"]
[SourceQuality "1"]
[WhiteTeam "Wales"]
[BlackTeam "Germany"]
[WhiteTeamCountry "WLS"]
[BlackTeamCountry "GER"]
[TimeControl "40/5400+30:1800+30"]

1. d4 {[%emt 0:00:17]} Nf6 {[%emt 0:00:12]} 2. Bg5 {[%emt 0:00:52]} d6 {[%emt 0:05:04]} 3. Nc3 {[%emt 0:02:52]} Nbd7 {[%emt 0:00:46]} 4. e4 {[%emt 0:04:10]} e5 {[%emt 0:01:23]} 5. Nf3 {[%emt 0:03:47]} Be7 {[%emt 0:00:50]} 6. Bc4 {[%emt 0:02:44]} c6 {[%emt 0:00:41]} 7. Qe2 {[%emt 0:10:14]} Qc7 {[%emt 0:06:07]} 8. O-O {[%emt 0:04:52]} h6 {[%emt 0:01:34]} 9. Be3 {[%emt 0:12:42]} b5 {[%emt 0:04:48]} 10. Bd3 {[%emt 0:07:31]} Bb7 {[%emt 0:01:23]} 11. d5 {[%emt 0:02:54]} a6 {[%emt 0:02:45]} 12. dxc6 {[%emt 0:04:25]} Bxc6 {[%emt 0:00:22]} 13. a3 {[%emt 0:00:27]} O-O {[%emt 0:04:49]} 14. Nh4 {[%emt 0:03:19]} Rfe8 {[%emt 0:01:28]} 15. Nf5 {[%emt 0:00:54]} Bf8 {[%emt 0:00:10]} 16. Qf3 {[%emt 0:01:28]} Kh7 {[%emt 0:05:18]} 17. g4 {[%emt 0:04:07]} g6 18. Nxh6 {[%emt 0:01:02]} Bxh6 {[%emt 0:02:27]} 19. Qh3 {[%emt 0:00:14]} Nxg4 {[%emt 0:01:31]} 20. Qxg4 {[%emt 0:01:46]} Rh8 {[%emt 0:00:58]} 21. Bxh6 {[%emt 0:05:00]} Kxh6 {[%emt 0:00:13]} 22. f4 {[%emt 0:00:05]} Kg7 {[%emt 0:01:01]} 23. f5 {[%emt 0:06:55]} Nf6 {[%emt 0:00:39]} 24. Qg2 {[%emt 0:00:32]} Rh6 {[%emt 0:00:43]} 25. Nd5 {[%emt 0:02:08]} Bxd5 {[%emt 0:01:43]} 26. exd5 {[%emt 0:00:31]} Qc5+ {[%emt 0:01:35]} 27. Qf2 {[%emt 0:01:21]} Rc8 {[%emt 0:08:44]} 28. Rae1 {[%emt 0:03:20]} Rh4 {[%emt 0:01:56]} 29. Re3 {[%emt 0:06:20]} Rxh2 {[%emt 0:00:49]} 30. Qg3 {[%emt 0:02:27]} Rch8 {[%emt 0:01:38]} 31. b4 {[%emt 0:02:07]} Rh1+ {[%emt 0:01:23]} 32. Kf2 {[%emt 0:00:16]} R8h2+ {[%emt 0:00:11]} 33. Ke1 {[%emt 0:00:05]} Qc3+ {[%emt 0:00:09]} 34. Kd1 {[%emt 0:00:05]} Qd2# {[%emt 0:01:51]} 0-1

[Event "ESTCC-50 2025"]
[Site "Swidnica"]
[Date "2025.04.08"]
[Round "4.14"]
[White "Holzke, Frank"]
[Black "Adams, Mark"]
[Result "1-0"]
[Annotator "RC"]
[ECO "B28"]
[WhiteElo "2412"]
[BlackElo "1916"]
[PlyCount "105"]
[EventDate "2025.04.05"]
[EventType "team-tourn"]
[EventCountry "POL"]
[SourceTitle "playchess.com"]
[Source "ChessBase"]
[SourceQuality "1"]
[WhiteTeam "Germany"]
[BlackTeam "Wales"]
[WhiteTeamCountry "GER"]
[BlackTeamCountry "WLS"]
[TimeControl "40/5400+30:1800+30"]

1. e4 {[%emt 0:00:07]} c5 {[%emt 0:00:19]} 2. Nf3 {[%emt 0:00:11]} a6 {[%emt 0:00:18]} 3. c4 {[%emt 0:00:24]} Nc6 {[%emt 0:00:15]} 4. d4 {[%emt 0:00:30]} cxd4 {[%emt 0:00:15]} 5. Nxd4 {[%emt 0:00:11]} e5 {[%emt 0:00:26]} 6. Nf5 {[%emt 0:00:48]} d6 {[%emt 0:00:21]} 7. Bd3 {[%emt 0:03:05]} g6 {[%emt 0:00:56]} 8. Ne3 {[%emt 0:00:50]} Bh6 {[%emt 0:00:58]} 9. Nc3 {[%emt 0:01:00]} Be6 {[%emt 0:04:49]} 10. Ncd5 {[%emt 0:03:03]} Bxd5 {[%emt 0:01:17]} 11. cxd5 {[%emt 0:04:31]} Nd4 {[%emt 0:08:51]} 12. h4 {[%emt 0:04:51]} Nf6 {[%emt 0:25:45]} 13. h5 {[%emt 0:02:37]} Nxh5 {[%emt 0:03:48]} 14. g4 {[%emt 0:01:59]} Nf4 {[%emt 0:15:19]} 15. Rxh6 {[%emt 0:00:31]} Rc8 {[%emt 0:04:28]} 16. Kf1 {[%emt 0:02:57]} Qg5 {[%emt 0:06:56]} 17. Rh1 {[%emt 0:01:33]} O-O {[%emt 0:03:44]} 18. Ng2 {[%emt 0:07:17]} Rxc1 {[%emt 0:05:41]} 19. Qxc1 {[%emt 0:00:18]} Qxg4 {[%emt 0:00:13]} 20. Nxf4 {[%emt 0:00:43]} exf4 {[%emt 0:00:11]} 21. Qc3 {[%emt 0:04:16]} f3 {[%emt 0:05:21]} 22. Rg1 {[%emt 0:12:35]} Qh3+ {[%emt 0:00:17]} 23. Ke1 {[%emt 0:00:09]} Qh2 {[%emt 0:05:17]} 24. Rg3 {[%emt 0:01:33]} Nf5 {[%emt 0:00:18]} 25. Rxf3 {[%emt 0:01:10]} Nh4 {[%emt 0:00:55]} 26. Bf1 {[%emt 0:03:52]} Nxf3+ {[%emt 0:00:35]} 27. Qxf3 Qe5 {[%emt 0:00:30]} 28. Rb1 {[%emt 0:02:14]} f5 {[%emt 0:00:16]} 29. Bg2 {[%emt 0:01:10]} Re8 {[%emt 0:00:27]} 30. Kf1 {[%emt 0:01:12]} fxe4 {[%emt 0:00:10]} 31. Qb3 {[%emt 0:00:20]} Qf5 {[%emt 0:00:43]} 32. Re1 {[%emt 0:01:27]} e3 {[%emt 0:00:02]} 33. Rxe3 {[%emt 0:01:13]} Rxe3 {[%emt 0:02:22]} 34. Qxe3 {[%emt 0:00:08]} Qb1+ {[%emt 0:00:04]} 35. Qe1 {[%emt 0:00:34]} Qxb2 {[%emt 0:00:08]} 36. Qe6+ {[%emt 0:03:14]} Kg7 {[%emt 0:00:06]} 37. Qe7+ {[%emt 0:01:11]} Kh6 {[%emt 0:00:30]} 38. Qe3+ {[%emt 0:00:12]} Kg7 {[%emt 0:00:08]} 39. Kg1 {[%emt 0:00:38]} Qa1+ {[%emt 0:01:11]} 40. Kh2 {[%emt 0:00:00]} Qf6 {[%emt 0:00:00]} 41. a4 {[%emt 0:03:41]} h5 {[%emt 0:05:47]} 42. a5 {[%emt 0:00:48]} g5 {[%emt 0:02:02]} 43. Qb6 {[%emt 0:01:40]} Qe7 {[%emt 0:00:16]} 44. Qd4+ {[%emt 0:00:30]} Qf6 {[%emt 0:04:27]} 45. Qxf6+ {[%emt 0:04:27]} Kxf6 {[%emt 0:00:05]} 46. Kg3 {[%emt 0:00:10]} Ke5 {[%emt 0:00:06]} 47. Bf3 {[%emt 0:05:40]} Kd4 {[%emt 0:12:08]} 48. Bxh5 {[%emt 0:01:48]} Kxd5 {[%emt 0:00:07]} 49. Bf3+ {[%emt 0:00:44]} Kc5 {[%emt 0:00:07]} 50. Bxb7 {[%emt 0:00:10]} Kb5 {[%emt 0:00:07]} 51. Kg4 {[%emt 0:00:14]} Kxa5 {[%emt 0:01:49]} 52. Kxg5 {[%emt 0:00:09]} Kb6 {[%emt 0:00:02]} 53. f4 {[%emt 0:01:32]} 1-0

[Event "ESTCC-50 2025"]
[Site "Swidnica"]
[Date "2025.04.08"]
[Round "4.15"]
[White "Van Kemenade, Rudy"]
[Black "Boensch, Uwe"]
[Result "0-1"]
[Annotator "RC"]
[ECO "B40"]
[WhiteElo "1945"]
[BlackElo "2465"]
[PlyCount "58"]
[EventDate "2025.04.05"]
[EventType "team-tourn"]
[EventCountry "POL"]
[SourceTitle "playchess.com"]
[Source "ChessBase"]
[SourceQuality "1"]
[WhiteTeam "Wales"]
[BlackTeam "Germany"]
[WhiteTeamCountry "WLS"]
[BlackTeamCountry "GER"]
[TimeControl "40/5400+30:1800+30"]

1. e4 {[%emt 0:00:04]} c5 {[%emt 0:00:22]} 2. Nf3 {[%emt 0:00:07]} e6 {[%emt 0:00:07]} 3. d3 {[%emt 0:00:07]} d5 {[%emt 0:00:13]} 4. Qe2 {[%emt 0:00:07]} Nc6 {[%emt 0:00:39]} 5. g3 {[%emt 0:00:09]} Nge7 {[%emt 0:01:17]} 6. Bg2 {[%emt 0:00:09]} g6 {[%emt 0:00:26]} 7. O-O {[%emt 0:00:10]} Bg7 {[%emt 0:00:03]} 8. c3 {[%emt 0:02:52]} O-O {[%emt 0:00:25]} 9. h4 {[%emt 0:00:07]} b6 {[%emt 0:00:51]} 10. a4 {[%emt 0:00:26]} e5 {[%emt 0:12:22]} 11. Ng5 {[%emt 0:03:07]} h6 {[%emt 0:03:26]} 12. Nh3 {[%emt 0:00:08]} Be6 {[%emt 0:05:10]} 13. f4 {[%emt 0:03:02]} Qd7 {[%emt 0:00:55]} 14. Nf2 {[%emt 0:03:12]} f5 {[%emt 0:05:14]} 15. Rd1 {[%emt 0:05:02]} Rae8 {[%emt 0:04:32]} 16. fxe5 {[%emt 0:03:34]} fxe4 {[%emt 0:04:08]} 17. dxe4 {[%emt 0:00:46]} d4 {[%emt 0:00:06]} 18. Bf4 {[%emt 0:02:31]} Nxe5 {[%emt 0:03:54]} 19. cxd4 {[%emt 0:00:25]} cxd4 {[%emt 0:00:01]} 20. Nc3 {[%emt 0:00:58]} Bc4 {[%emt 0:24:36]} 21. Qc2 {[%emt 0:04:11]} Rc8 {[%emt 0:00:10]} 22. Qb1 {[%emt 0:05:32]} Ng4 {[%emt 0:05:36]} 23. Nh3 {[%emt 0:03:30]} a6 {[%emt 0:07:56]} 24. Rd2 {[%emt 0:07:16]} Qe8 {[%emt 0:01:55]} 25. Nd5 {[%emt 0:01:54]} Nxd5 {[%emt 0:00:22]} 26. exd5 {[%emt 0:00:08]} Rxf4 {[%emt 0:00:12]} 27. gxf4 {[%emt 0:00:42]} Qe3+ {[%emt 0:00:10]} 28. Rf2 {[%emt 0:00:08]} Qg3 {[%emt 0:01:43]} 29. Qxg6 {[%emt 0:01:07]} Qh2# {[%emt 0:00:11]} 0-1

[Event "ESTCC-50 2025"]
[Site "Swidnica"]
[Date "2025.04.08"]
[Round "4.16"]
[White "Tischbierek, Raj"]
[Black "Hughes, Anthony"]
[Result "1-0"]
[Annotator "RC"]
[ECO "B12"]
[WhiteElo "2418"]
[BlackElo "1911"]
[PlyCount "83"]
[EventDate "2025.04.05"]
[EventType "team-tourn"]
[EventCountry "POL"]
[SourceTitle "playchess.com"]
[Source "ChessBase"]
[SourceQuality "1"]
[WhiteTeam "Germany"]
[BlackTeam "Wales"]
[WhiteTeamCountry "GER"]
[BlackTeamCountry "WLS"]
[TimeControl "40/5400+30:1800+30"]

1. e4 {[%emt 0:00:10]} c6 {[%emt 0:00:04]} 2. d4 {[%emt 0:00:44]} d5 {[%emt 0:00:13]} 3. e5 {[%emt 0:00:05]} c5 {[%emt 0:00:04]} 4. Nf3 {[%emt 0:00:45]} cxd4 {[%emt 0:08:54]} 5. Qxd4 {[%emt 0:00:47]} Nc6 {[%emt 0:02:22]} 6. Qf4 {[%emt 0:00:26]} e6 {[%emt 0:11:23]} 7. Nc3 {[%emt 0:02:22]} a6 {[%emt 0:11:38]} 8. Bd3 {[%emt 0:10:11]} Qc7 {[%emt 0:05:26]} 9. Qg3 {[%emt 0:07:30]} Nge7 {[%emt 0:04:18]} 10. O-O {[%emt 0:01:36]} Nb4 {[%emt 0:02:17]} 11. Bd2 {[%emt 0:03:29]} Nxd3 {[%emt 0:06:03]} 12. cxd3 {[%emt 0:00:15]} Nf5 {[%emt 0:03:23]} 13. Qf4 {[%emt 0:12:47]} f6 {[%emt 0:14:55]} 14. Rac1 {[%emt 0:11:34]} g5 {[%emt 0:05:25]} 15. Qa4+ {[%emt 0:01:38]} Bd7 {[%emt 0:08:37]} 16. Qd1 {[%emt 0:03:20]} Bc6 {[%emt 0:01:48]} 17. exf6 {[%emt 0:00:57]} h6 {[%emt 0:01:11]} 18. Re1 {[%emt 0:02:29]} Kf7 {[%emt 0:00:33]} 19. Qe2 {[%emt 0:02:48]} Qd6 {[%emt 0:01:14]} 20. g4 {[%emt 0:14:56]} Nh4 {[%emt 0:00:57]} 21. Nxh4 {[%emt 0:03:06]} gxh4 {[%emt 0:00:06]} 22. d4 {[%emt 0:00:28]} Rg8 {[%emt 0:01:29]} 23. f4 {[%emt 0:05:32]} Re8 {[%emt 0:01:25]} 24. g5 {[%emt 0:01:30]} Qb4 {[%emt 0:03:31]} 25. Qd3 {[%emt 0:01:25]} Rg6 {[%emt 0:00:47]} 26. Nd1 {[%emt 0:03:17]} Qd6 {[%emt 0:01:14]} 27. Re5 {[%emt 0:00:38]} Qd7 {[%emt 0:01:02]} 28. Nf2 {[%emt 0:01:22]} Bd6 {[%emt 0:00:15]} 29. Ng4 hxg5 {[%emt 0:00:35]} 30. fxg5 {[%emt 0:02:05]} Bb5 {[%emt 0:00:52]} 31. Qf3 {[%emt 0:00:55]} Rh8 {[%emt 0:00:16]} 32. Rce1 {[%emt 0:00:55]} Re8 {[%emt 0:01:59]} 33. Kf2 {[%emt 0:00:33]} Qc7 {[%emt 0:01:59]} 34. Bc3 {[%emt 0:01:49]} Qc4 {[%emt 0:00:01]} 35. a4 {[%emt 0:01:43]} Bd7 {[%emt 0:00:06]} 36. R1e3 {[%emt 0:01:55]} Qxa4 {[%emt 0:00:27]} 37. Nh6+ {[%emt 0:00:10]} Kf8 {[%emt 0:00:07]} 38. Qh5 {[%emt 0:01:30]} Qc2+ {[%emt 0:00:16]} 39. Re2 {[%emt 0:00:08]} Qb1 {[%emt 0:00:09]} 40. Ng4 {[%emt 0:00:00]} Bxe5 {[%emt 0:00:00]} 41. Qh8+ {[%emt 0:00:52]} Rg8 {[%emt 0:04:57]} 42. Qh6+ {[%emt 0:00:04]} 1-0